[Event "Niedersachsen-ch Meister 2024"]
[Site "Verden Aller"]
[Date "2024.01.04"]
[Round "2.2"]
[White "Knuedel, Torben"]
[Black "Stelmaszyk, Nico"]
[Result "1/2-1/2"]
[ECO "B24"]
[WhiteElo "2287"]
[BlackElo "2363"]
[Annotator "RC"]
[PlyCount "84"]
[EventDate "2024.01.01"]
[EventType "swiss"]
[EventCountry "GER"]
[SourceTitle "playchess.com"]
[Source "ChessBase"]
[SourceQuality "1"]
[TimeControl "40/5400+30:1800+30"]

1. e4 {[%emt 0:00:03]} c5 {[%emt 0:00:09]} 2. Nc3 {[%emt 0:00:06]} e6 {[%emt 0:00:06]} 3. Nge2 {[%emt 0:00:12]} Nc6 {[%emt 0:00:10]} 4. g3 {[%emt 0:00:10]} d5 {[%emt 0:00:25]} 5. exd5 {[%emt 0:00:45]} exd5 {[%emt 0:00:07]} 6. d4 {[%emt 0:00:16]} cxd4 {[%emt 0:00:10]} 7. Nxd4 {[%emt 0:00:16]} Nf6 {[%emt 0:00:10]} 8. Bg2 {[%emt 0:01:58]} Bg4 {[%emt 0:00:22]} 9. f3 {[%emt 0:00:34]} Bd7 {[%emt 0:00:58]} 10. Be3 {[%emt 0:08:44]} Be7 {[%emt 0:02:16]} 11. O-O {[%emt 0:09:19]} O-O {[%emt 0:00:27]} 12. Bf2 {[%emt 0:02:16]} Rc8 {[%emt 0:10:12]} 13. Nce2 {[%emt 0:04:26]} Re8 {[%emt 0:04:43]} 14. c3 {[%emt 0:04:30]} Ne5 {[%emt 0:03:46]} 15. Nf4 {[%emt 0:07:03]} Nc4 {[%emt 0:05:54]} 16. Nd3 {[%emt 0:01:24]} Bd6 {[%emt 0:03:08]} 17. Re1 {[%emt 0:07:09]} Rxe1+ {[%emt 0:03:42]} 18. Qxe1 {[%emt 0:00:13]} Qc7 {[%emt 0:00:53]} 19. Qc1 {[%emt 0:00:43]} Re8 {[%emt 0:06:05]} 20. a4 {[%emt 0:03:37]} a6 {[%emt 0:01:30]} 21. Bf1 {[%emt 0:01:25]} h6 {[%emt 0:06:22]} 22. b3 {[%emt 0:06:09]} Ne5 {[%emt 0:02:47]} 23. Ra2 {[%emt 0:03:30]} Ng6 {[%emt 0:04:30]} 24. a5 {[%emt 0:06:47]} Nh7 {[%emt 0:06:21]} 25. b4 {[%emt 0:03:27]} Ng5 {[%emt 0:03:17]} 26. Be3 {[%emt 0:01:20]} Ne5 {[%emt 0:07:55]} 27. Nxe5 {[%emt 0:08:25]} Bxe5 {[%emt 0:00:18]} 28. Kf2 {[%emt 0:04:59]} Ne6 {[%emt 0:07:44]} 29. Qd2 {[%emt 0:01:52]} Rc8 {[%emt 0:03:06]} 30. Rc2 {[%emt 0:00:43]} Bd6 {[%emt 0:05:57]} 31. Bd3 {[%emt 0:01:08]} Ba4 {[%emt 0:03:33]} 32. Ra2 {[%emt 0:01:11]} Bd7 {[%emt 0:00:22]} 33. Rc2 {[%emt 0:01:53]} Ba4 {[%emt 0:00:50]} 34. Ra2 {[%emt 0:03:29]} Nxd4 {[%emt 0:03:52]} 35. Bxd4 {[%emt 0:01:26]} Bb3 {[%emt 0:00:12]} 36. Ra1 {[%emt 0:01:14]} Qd7 {[%emt 0:03:05]} 37. Kg2 {[%emt 0:00:53]} Bc4 {[%emt 0:00:43]} 38. Re1 {[%emt 0:00:59]} Bxd3 {[%emt 0:00:36]} 39. Qxd3 {[%emt 0:00:02]} Re8 {[%emt 0:01:11]} 40. Rxe8+ {[%emt 0:02:29]} Qxe8 {[%emt 0:00:06]} 41. Bf2 {[%emt 0:33:01]} Qc6 {[%emt 0:31:44]} 42. Bd4 {[%emt 0:00:31]} Qe8 {[%emt 0:00:00]} 1/2-1/2

[Event "Niedersachsen-ch Meister 2024"]
[Site "Verden Aller"]
[Date "2024.01.04"]
[Round "2.3"]
[White "Polster, Christian"]
[Black "Hampel, Felix"]
[Result "1/2-1/2"]
[ECO "B23"]
[WhiteElo "2244"]
[BlackElo "2294"]
[Annotator "RC"]
[PlyCount "91"]
[EventDate "2024.01.01"]
[EventType "swiss"]
[EventCountry "GER"]
[SourceTitle "playchess.com"]
[Source "ChessBase"]
[SourceQuality "1"]
[TimeControl "40/5400+30:1800+30"]

1. e4 {[%emt 0:00:06]} c5 {[%emt 0:00:04]} 2. Nc3 {[%emt 0:02:42]} Nc6 {[%emt 0:00:06]} 3. Nge2 {[%emt 0:00:09]} Nd4 {[%emt 0:00:05]} 4. Nxd4 {[%emt 0:00:34]} cxd4 {[%emt 0:00:05]} 5. Ne2 {[%emt 0:00:05]} e5 {[%emt 0:00:04]} 6. c3 {[%emt 0:01:51]} d5 {[%emt 0:00:04]} 7. d3 {[%emt 0:04:56]} dxe4 {[%emt 0:07:41]} 8. dxe4 {[%emt 0:00:24]} Nf6 {[%emt 0:00:25]} 9. Ng3 {[%emt 0:11:07]} Bc5 {[%emt 0:02:02]} 10. Bb5+ {[%emt 0:04:52]} Bd7 {[%emt 0:00:57]} 11. Bxd7+ {[%emt 0:04:13]} Qxd7 {[%emt 0:00:24]} 12. cxd4 {[%emt 0:03:27]} Bxd4 {[%emt 0:02:53]} 13. O-O {[%emt 0:06:09]} g6 {[%emt 0:24:31]} 14. Bg5 {[%emt 0:03:43]} Ng4 {[%emt 0:07:16]} 15. Qf3 {[%emt 0:03:30]} h6 {[%emt 0:06:23]} 16. Bd2 {[%emt 0:07:00]} O-O-O {[%emt 0:03:41]} 17. Bc3 {[%emt 0:03:50]} Qe6 {[%emt 0:04:47]} 18. Ne2 {[%emt 0:07:10]} Bxc3 {[%emt 0:06:52]} 19. Nxc3 {[%emt 0:00:07]} f5 {[%emt 0:00:52]} 20. Rfe1 {[%emt 0:10:52]} Kb8 {[%emt 0:03:40]} 21. Rad1 {[%emt 0:03:40]} f4 {[%emt 0:05:32]} 22. Rxd8+ {[%emt 0:02:13]} Rxd8 {[%emt 0:00:09]} 23. Rd1 {[%emt 0:00:07]} Rc8 {[%emt 0:07:51]} 24. Qd3 {[%emt 0:01:53]} Nf6 {[%emt 0:00:24]} 25. h3 {[%emt 0:00:26]} a6 {[%emt 0:01:00]} 26. Qd6+ {[%emt 0:03:36]} Qxd6 {[%emt 0:00:04]} 27. Rxd6 {[%emt 0:00:06]} Rc6 {[%emt 0:00:05]} 28. Rxc6 {[%emt 0:00:23]} bxc6 {[%emt 0:00:05]} 29. Kf1 {[%emt 0:00:44]} Kc7 {[%emt 0:03:37]} 30. Ke2 {[%emt 0:00:06]} Kd6 {[%emt 0:01:30]} 31. Kd3 {[%emt 0:01:24]} Kc5 {[%emt 0:00:22]} 32. Nb1 {[%emt 0:01:34]} Ne8 {[%emt 0:05:39]} 33. Nd2 {[%emt 0:00:52]} Nd6 {[%emt 0:00:32]} 34. Nf3 {[%emt 0:00:24]} Nf7 {[%emt 0:00:28]} 35. h4 {[%emt 0:05:14]} Kb4 {[%emt 0:01:42]} 36. Nd2 {[%emt 0:01:52]} Nd6 {[%emt 0:00:56]} 37. a3+ {[%emt 0:01:04]} Kb5 {[%emt 0:00:27]} 38. b3 {[%emt 0:03:24]} a5 {[%emt 0:01:05]} 39. Nf3 {[%emt 0:00:48]} Nf7 {[%emt 0:00:34]} 40. Kc3 {[%emt 0:00:29]} a4 {[%emt 0:03:16]} 41. bxa4+ {[%emt 0:31:50]} Kxa4 {[%emt 0:30:06]} 42. Kc4 {[%emt 0:00:29]} Nd6+ {[%emt 0:00:10]} 43. Kc5 {[%emt 0:00:04]} Nxe4+ {[%emt 0:00:05]} 44. Kxc6 {[%emt 0:00:07]} Nxf2 {[%emt 0:01:03]} 45. Nxe5 {[%emt 0:00:53]} g5 {[%emt 0:00:25]} 46. hxg5 {[%emt 0:00:00]} 1/2-1/2

[Event "Niedersachsen-ch Meister 2024"]
[Site "Verden Aller"]
[Date "2024.01.04"]
[Round "2.4"]
[White "Voege, Tobias"]
[Black "Nechitaylo, Nikita"]
[Result "0-1"]
[ECO "A77"]
[WhiteElo "2283"]
[BlackElo "2221"]
[Annotator "RC"]
[PlyCount "92"]
[EventDate "2024.01.01"]
[EventType "swiss"]
[EventCountry "GER"]
[SourceTitle "playchess.com"]
[Source "ChessBase"]
[SourceQuality "1"]
[TimeControl "40/5400+30:1800+30"]

1. d4 {[%emt 0:00:02]} Nf6 {[%emt 0:00:04]} 2. c4 {[%emt 0:00:06]} e6 {[%emt 0:00:03]} 3. Nf3 {[%emt 0:00:21]} c5 {[%emt 0:00:10]} 4. d5 {[%emt 0:00:07]} d6 {[%emt 0:00:05]} 5. Nc3 {[%emt 0:00:11]} exd5 {[%emt 0:00:05]} 6. cxd5 {[%emt 0:00:04]} g6 {[%emt 0:00:08]} 7. Nd2 {[%emt 0:01:06]} Nbd7 {[%emt 0:00:23]} 8. e4 {[%emt 0:00:48]} Bg7 {[%emt 0:00:07]} 9. Be2 {[%emt 0:00:10]} O-O {[%emt 0:00:23]} 10. O-O {[%emt 0:00:13]} Re8 {[%emt 0:01:01]} 11. a4 {[%emt 0:01:14]} a6 {[%emt 0:02:18]} 12. Ra3 {[%emt 0:02:27]} Rb8 {[%emt 0:01:52]} 13. a5 {[%emt 0:00:49]} Ne5 {[%emt 0:06:10]} 14. Re1 {[%emt 0:09:26]} b5 {[%emt 0:12:47]} 15. axb6 {[%emt 0:00:13]} Rxb6 {[%emt 0:00:03]} 16. f4 {[%emt 0:27:16]} Neg4 {[%emt 0:00:05]} 17. Nf1 {[%emt 0:03:26]} h5 {[%emt 0:51:57]} 18. Bf3 {[%emt 0:08:23]} Nh7 {[%emt 0:06:31]} 19. Ne2 {[%emt 0:31:02]} f5 {[%emt 0:01:08]} 20. Qc2 {[%emt 0:05:16]} Nhf6 {[%emt 0:03:22]} 21. Bxg4 {[%emt 0:04:42]} hxg4 {[%emt 0:04:20]} 22. Nc3 {[%emt 0:01:23]} Nxe4 {[%emt 0:00:21]} 23. Nxe4 {[%emt 0:00:17]} Bd4+ {[%emt 0:00:36]} 24. Kh1 {[%emt 0:01:29]} fxe4 {[%emt 0:00:35]} 25. Rxe4 {[%emt 0:01:39]} Bf5 {[%emt 0:00:19]} 26. Rxe8+ {[%emt 0:00:03]} Qxe8 {[%emt 0:00:04]} 27. Qd1 {[%emt 0:00:45]} Rb7 {[%emt 0:02:54]} 28. Be3 {[%emt 0:00:46]} Re7 {[%emt 0:00:24]} 29. Qd2 {[%emt 0:00:16]} Qb5 {[%emt 0:00:37]} 30. Kg1 {[%emt 0:00:22]} Bxb2 {[%emt 0:00:44]} 31. Ra5 {[%emt 0:00:46]} Qb3 {[%emt 0:02:16]} 32. Rxa6 {[%emt 0:00:28]} Bd3 {[%emt 0:01:54]} 33. Ra8+ {[%emt 0:00:42]} Kg7 {[%emt 0:00:05]} 34. Bf2 {[%emt 0:00:29]} Re2 {[%emt 0:01:24]} 35. Qa5 {[%emt 0:00:27]} Rxf2 {[%emt 0:00:23]} 36. Kxf2 {[%emt 0:00:28]} Bd4+ {[%emt 0:00:05]} 37. Ne3 {[%emt 0:00:13]} Qb2+ {[%emt 0:01:20]} 38. Kg3 {[%emt 0:00:06]} Bxe3 {[%emt 0:00:44]} 39. Rg8+ {[%emt 0:00:10]} Kh6 {[%emt 0:01:27]} 40. Qe1 {[%emt 0:00:26]} Qd4 {[%emt 0:00:36]} 41. Rf8 {[%emt 0:31:22]} Bf5 {[%emt 0:04:14]} 42. Qf1 {[%emt 0:00:00]} c4 {[%emt 0:00:49]} 43. h3 {[%emt 0:00:00]} Qd3 {[%emt 0:00:10]} 44. Qxd3 {[%emt 0:00:00]} cxd3 {[%emt 0:00:11]} 45. hxg4 {[%emt 0:00:00]} d2 {[%emt 0:00:49]} 46. Rf7 {[%emt 0:00:00]} g5 {[%emt 0:03:42]} 0-1

[Event "Niedersachsen-ch Meister 2024"]
[Site "Verden Aller"]
[Date "2024.01.04"]
[Round "2.5"]
[White "Riemay, David"]
[Black "von Mettenheim, Johannes"]
[Result "1-0"]
[ECO "B12"]
[WhiteElo "2213"]
[BlackElo "2284"]
[Annotator "RC"]
[PlyCount "57"]
[EventDate "2024.01.01"]
[EventType "swiss"]
[EventCountry "GER"]
[SourceTitle "playchess.com"]
[Source "ChessBase"]
[SourceQuality "1"]
[TimeControl "40/5400+30:1800+30"]

1. e4 {[%emt 0:00:01]} c6 {[%emt 0:00:05]} 2. d4 {[%emt 0:00:03]} d5 {[%emt 0:00:07]} 3. f3 {[%emt 0:00:03]} Qb6 {[%emt 0:01:09]} 4. Nc3 {[%emt 0:00:04]} dxe4 {[%emt 0:00:52]} 5. Bc4 {[%emt 0:00:04]} Nf6 {[%emt 0:01:18]} 6. Bb3 {[%emt 0:00:27]} e3 {[%emt 0:17:20]} 7. Bxe3 {[%emt 0:02:11]} Bf5 {[%emt 0:00:23]} 8. Qd2 {[%emt 0:03:25]} e6 {[%emt 0:02:15]} 9. g4 {[%emt 0:02:25]} Bg6 {[%emt 0:00:14]} 10. d5 {[%emt 0:01:04]} Bc5 {[%emt 0:03:59]} 11. Bxc5 {[%emt 0:00:20]} Qxc5 {[%emt 0:00:03]} 12. dxe6 {[%emt 0:00:20]} O-O {[%emt 0:04:49]} 13. O-O-O {[%emt 0:00:33]} Na6 {[%emt 0:03:56]} 14. Nge2 {[%emt 0:03:27]} fxe6 {[%emt 0:05:21]} 15. Bxe6+ {[%emt 0:02:50]} Kh8 {[%emt 0:10:40]} 16. Nf4 {[%emt 0:07:17]} Bf7 {[%emt 0:00:49]} 17. Rhe1 {[%emt 0:01:00]} Nc7 {[%emt 0:00:48]} 18. Bxf7 {[%emt 0:00:56]} Rxf7 {[%emt 0:00:07]} 19. Nd3 {[%emt 0:00:24]} Qa5 {[%emt 0:01:07]} 20. Ne5 {[%emt 0:00:34]} Rff8 {[%emt 0:01:05]} 21. Kb1 {[%emt 0:10:50]} Rae8 {[%emt 0:07:52]} 22. Qd6 {[%emt 0:07:33]} Kg8 {[%emt 0:06:08]} 23. Nc4 {[%emt 0:02:47]} Qa6 {[%emt 0:00:20]} 24. Ne3 {[%emt 0:00:20]} Ne6 {[%emt 0:19:10]} 25. Nf5 {[%emt 0:03:10]} Ng5 {[%emt 0:03:50]} 26. Re7 {[%emt 0:12:51]} Nf7 {[%emt 0:01:41]} 27. Qe6 {[%emt 0:01:07]} Qa5 {[%emt 0:03:38]} 28. g5 {[%emt 0:01:13]} Kh8 {[%emt 0:01:40]} 29. gxf6 {[%emt 0:00:17]} 1-0

[Event "Niedersachsen-ch Meister 2024"]
[Site "Verden Aller"]
[Date "2024.01.04"]
[Round "2.6"]
[White "Pubantz, Jan"]
[Black "Bundan, Edward"]
[Result "1-0"]
[ECO "D80"]
[WhiteElo "2288"]
[BlackElo "1706"]
[Annotator "RC"]
[PlyCount "51"]
[EventDate "2024.01.01"]
[EventType "swiss"]
[EventCountry "GER"]
[SourceTitle "playchess.com"]
[Source "ChessBase"]
[SourceQuality "1"]
[TimeControl "40/5400+30:1800+30"]

1. d4 {[%emt 0:00:02]} Nf6 {[%emt 0:00:07]} 2. c4 {[%emt 0:00:02]} g6 {[%emt 0:01:12]} 3. Nc3 {[%emt 0:00:08]} d5 {[%emt 0:00:50]} 4. h4 {[%emt 0:01:37]} h5 {[%emt 0:03:42]} 5. Nf3 {[%emt 0:01:12]} Bg7 {[%emt 0:00:51]} 6. Bg5 {[%emt 0:05:29]} c6 {[%emt 0:00:59]} 7. cxd5 {[%emt 0:02:31]} cxd5 {[%emt 0:01:31]} 8. Qb3 {[%emt 0:02:09]} e6 {[%emt 0:03:18]} 9. e3 {[%emt 0:02:36]} Nc6 {[%emt 0:04:58]} 10. Bd3 {[%emt 0:05:52]} Qa5 {[%emt 0:07:00]} 11. O-O {[%emt 0:00:54]} O-O {[%emt 0:01:23]} 12. Rac1 {[%emt 0:02:00]} Qb4 {[%emt 0:03:00]} 13. Qxb4 {[%emt 0:03:52]} Nxb4 {[%emt 0:00:51]} 14. Be2 {[%emt 0:00:22]} a6 {[%emt 0:07:12]} 15. Ne5 {[%emt 0:14:37]} a5 {[%emt 0:08:02]} 16. Bb5 {[%emt 0:03:34]} Na6 {[%emt 0:05:11]} 17. Na4 {[%emt 0:01:56]} Rb8 {[%emt 0:08:29]} 18. Nb6 {[%emt 0:07:19]} Rd8 {[%emt 0:01:23]} 19. Nd3 {[%emt 0:03:46]} Bd7 {[%emt 0:06:50]} 20. Nxd7 {[%emt 0:01:50]} Nxd7 {[%emt 0:00:26]} 21. Bxd8 {[%emt 0:00:07]} Rxd8 {[%emt 0:00:08]} 22. Bxa6 {[%emt 0:00:31]} bxa6 {[%emt 0:00:16]} 23. Rc6 {[%emt 0:39:34]} Nb8 {[%emt 0:01:08]} 24. Rc7 {[%emt 0:00:00]} Bf8 {[%emt 0:00:17]} 25. Rfc1 {[%emt 0:00:00]} Rd6 {[%emt 0:00:20]} 26. Ne5 {[%emt 0:00:00]} 1-0

[Event "Niedersachsen-ch Meister 2024"]
[Site "Verden Aller"]
[Date "2024.01.04"]
[Round "2.7"]
[White "Mimkes, Antal"]
[Black "Laubsch, Bernd"]
[Result "1-0"]
[ECO "B20"]
[WhiteElo "1823"]
[BlackElo "2259"]
[Annotator "RC"]
[PlyCount "57"]
[EventDate "2024.01.01"]
[EventType "swiss"]
[EventCountry "GER"]
[SourceTitle "playchess.com"]
[Source "ChessBase"]
[SourceQuality "1"]
[TimeControl "40/5400+30:1800+30"]

1. e4 {[%emt 0:00:04]} c5 {[%emt 0:00:41]} 2. b4 {[%emt 0:00:23]} cxb4 {[%emt 0:00:37]} 3. a3 {[%emt 0:00:16]} bxa3 {[%emt 0:00:35]} 4. d4 {[%emt 0:00:30]} d5 {[%emt 0:03:13]} 5. exd5 {[%emt 0:00:39]} Qxd5 {[%emt 0:00:19]} 6. Nc3 {[%emt 0:01:39]} Qd8 {[%emt 0:01:24]} 7. Bxa3 {[%emt 0:08:14]} Nf6 {[%emt 0:01:53]} 8. Bc4 {[%emt 0:02:21]} a6 {[%emt 0:07:05]} 9. Nf3 {[%emt 0:03:24]} b5 {[%emt 0:11:18]} 10. Bb3 {[%emt 0:04:09]} Bb7 {[%emt 0:00:28]} 11. d5 {[%emt 0:14:31]} Nbd7 {[%emt 0:06:20]} 12. O-O {[%emt 0:04:12]} Nb6 {[%emt 0:08:10]} 13. d6 {[%emt 0:06:16]} e6 {[%emt 0:00:39]} 14. Re1 {[%emt 0:02:13]} Rc8 {[%emt 0:01:25]} 15. Ng5 {[%emt 0:12:17]} Nc4 {[%emt 0:04:52]} 16. Qe2 {[%emt 0:03:07]} Qd7 {[%emt 0:01:40]} 17. Bb4 {[%emt 0:02:30]} h6 {[%emt 0:16:09]} 18. Nge4 {[%emt 0:01:38]} Qc6 {[%emt 0:09:09]} 19. Rad1 {[%emt 0:04:11]} Kd8 {[%emt 0:10:57]} 20. Bxc4 {[%emt 0:04:52]} bxc4 {[%emt 0:01:23]} 21. Ba5+ {[%emt 0:05:32]} Kd7 {[%emt 0:00:25]} 22. f3 {[%emt 0:04:46]} Nxe4 {[%emt 0:00:53]} 23. Nxe4 {[%emt 0:00:26]} Re8 {[%emt 0:08:47]} 24. Kh1 {[%emt 0:01:04]} f5 {[%emt 0:00:16]} 25. Nd2 {[%emt 0:01:33]} Qb5 {[%emt 0:03:46]} 26. Nxc4 {[%emt 0:00:54]} e5 {[%emt 0:00:35]} 27. Rb1 {[%emt 0:02:53]} Qc6 {[%emt 0:00:03]} 28. Nxe5+ {[%emt 0:00:41]} Rxe5 {[%emt 0:00:02]} 29. Qxe5 {[%emt 0:00:10]} 1-0

[Event "Niedersachsen-ch Meister 2024"]
[Site "Verden Aller"]
[Date "2024.01.04"]
[Round "2.8"]
[White "Heinemann, Ernst"]
[Black "Tonndorf, Matthias"]
[Result "0-1"]
[ECO "B40"]
[WhiteElo "2033"]
[BlackElo "2184"]
[Annotator "RC"]
[PlyCount "76"]
[EventDate "2024.01.01"]
[EventType "swiss"]
[EventCountry "GER"]
[SourceTitle "playchess.com"]
[Source "ChessBase"]
[SourceQuality "1"]
[TimeControl "40/5400+30:1800+30"]

1. e4 {[%emt 0:00:37]} c5 {[%emt 0:00:29]} 2. Nf3 {[%emt 0:00:21]} e6 {[%emt 0:00:07]} 3. b3 {[%emt 0:00:21]} Nc6 {[%emt 0:02:05]} 4. Bb2 {[%emt 0:00:18]} a6 {[%emt 0:01:08]} 5. g3 {[%emt 0:01:22]} d6 {[%emt 0:02:51]} 6. Bg2 {[%emt 0:00:49]} e5 {[%emt 0:01:09]} 7. O-O {[%emt 0:00:38]} Nf6 {[%emt 0:02:17]} 8. d3 {[%emt 0:03:10]} Be7 {[%emt 0:01:15]} 9. Nbd2 {[%emt 0:03:37]} O-O {[%emt 0:00:29]} 10. a4 {[%emt 0:03:14]} Bg4 {[%emt 0:06:17]} 11. h3 {[%emt 0:05:15]} Bh5 {[%emt 0:02:03]} 12. c3 {[%emt 0:12:17]} d5 {[%emt 0:04:49]} 13. Qe2 {[%emt 0:10:17]} d4 {[%emt 0:02:05]} 14. cxd4 {[%emt 0:09:25]} cxd4 {[%emt 0:01:50]} 15. Nc4 {[%emt 0:01:46]} Nd7 {[%emt 0:00:51]} 16. Ba3 {[%emt 0:04:56]} Bxa3 {[%emt 0:01:53]} 17. Nxa3 {[%emt 0:00:27]} Qe7 {[%emt 0:00:45]} 18. g4 {[%emt 0:00:57]} Bg6 {[%emt 0:00:06]} 19. Nd2 {[%emt 0:02:18]} f6 {[%emt 0:00:43]} 20. Nc2 {[%emt 0:01:57]} Rfc8 {[%emt 0:02:05]} 21. Rfc1 {[%emt 0:02:06]} Nd8 {[%emt 0:00:29]} 22. f4 {[%emt 0:05:47]} Ne6 {[%emt 0:00:41]} 23. f5 {[%emt 0:01:51]} Nf4 {[%emt 0:00:06]} 24. Qf3 {[%emt 0:02:26]} Bf7 {[%emt 0:01:02]} 25. Bf1 {[%emt 0:02:52]} Rc3 {[%emt 0:03:21]} 26. Ne1 {[%emt 0:02:43]} Rac8 {[%emt 0:02:51]} 27. Qd1 {[%emt 0:01:10]} Qb4 {[%emt 0:06:30]} 28. Rab1 {[%emt 0:05:45]} b5 {[%emt 0:11:26]} 29. Kh2 {[%emt 0:06:38]} Qc5 {[%emt 0:02:05]} 30. b4 {[%emt 0:00:43]} Rxc1 {[%emt 0:02:23]} 31. bxc5 {[%emt 0:00:16]} Rxd1 {[%emt 0:00:21]} 32. Rxd1 {[%emt 0:00:06]} bxa4 {[%emt 0:00:48]} 33. Nb1 {[%emt 0:00:44]} Rxc5 {[%emt 0:01:26]} 34. Na3 {[%emt 0:00:56]} Bb3 {[%emt 0:01:38]} 35. Rb1 {[%emt 0:00:36]} Rc3 {[%emt 0:00:32]} 36. Nc4 {[%emt 0:01:12]} Bxc4 {[%emt 0:01:31]} 37. dxc4 {[%emt 0:00:05]} Rb3 {[%emt 0:00:18]} 38. Ra1 {[%emt 0:00:39]} Nc5 {[%emt 0:00:37]} 0-1

[Event "Niedersachsen-ch Meister 2024"]
[Site "Verden Aller"]
[Date "2024.01.04"]
[Round "2.9"]
[White "Bargsten, Justus"]
[Black "Reimer, Philip"]
[Result "1/2-1/2"]
[ECO "B33"]
[WhiteElo "2216"]
[BlackElo "2152"]
[Annotator "RC"]
[PlyCount "42"]
[EventDate "2024.01.01"]
[EventType "swiss"]
[EventCountry "GER"]
[SourceTitle "playchess.com"]
[Source "ChessBase"]
[SourceQuality "1"]
[TimeControl "40/5400+30:1800+30"]

1. e4 {[%emt 0:00:01]} c5 {[%emt 0:00:08]} 2. Nf3 {[%emt 0:00:04]} Nc6 {[%emt 0:00:06]} 3. d4 {[%emt 0:00:03]} cxd4 {[%emt 0:00:04]} 4. Nxd4 {[%emt 0:00:03]} Nf6 {[%emt 0:00:06]} 5. Nc3 {[%emt 0:00:04]} e5 {[%emt 0:00:05]} 6. Ndb5 {[%emt 0:00:04]} d6 {[%emt 0:00:04]} 7. Bg5 {[%emt 0:00:07]} a6 {[%emt 0:00:04]} 8. Na3 {[%emt 0:00:04]} b5 {[%emt 0:00:05]} 9. Nab1 {[%emt 0:00:04]} Be7 {[%emt 0:00:54]} 10. Bxf6 {[%emt 0:00:26]} Bxf6 {[%emt 0:00:32]} 11. a4 {[%emt 0:00:04]} b4 {[%emt 0:04:04]} 12. Nd5 {[%emt 0:00:05]} O-O {[%emt 0:00:55]} 13. Bc4 {[%emt 0:00:02]} Bg5 {[%emt 0:11:36]} 14. O-O {[%emt 0:00:03]} Be6 {[%emt 0:04:43]} 15. c3 {[%emt 0:00:15]} a5 {[%emt 0:12:59]} 16. cxb4 {[%emt 0:04:03]} axb4 {[%emt 0:00:07]} 17. Qd3 {[%emt 0:05:43]} Kh8 {[%emt 0:06:19]} 18. Nd2 {[%emt 0:05:36]} Rb8 {[%emt 0:06:35]} 19. Ne3 {[%emt 0:08:59]} Nd4 {[%emt 0:10:56]} 20. Nb3 {[%emt 0:02:20]} Bxe3 {[%emt 0:07:36]} 21. fxe3 {[%emt 0:00:12]} Bxc4 {[%emt 0:04:30]} 1/2-1/2

[Event "Niedersachsen-ch Meister 2024"]
[Site "Verden Aller"]
[Date "2024.01.04"]
[Round "2.10"]
[White "Bennemann, Ingmar"]
[Black "Mueer, Sebastian"]
[Result "0-1"]
[ECO "D00"]
[WhiteElo "1971"]
[BlackElo "2189"]
[Annotator "RC"]
[PlyCount "35"]
[EventDate "2024.01.01"]
[EventType "swiss"]
[EventCountry "GER"]
[SourceTitle "playchess.com"]
[Source "ChessBase"]
[SourceQuality "1"]
[TimeControl "40/5400+30:1800+30"]

1. d4 {[%emt 0:00:30]} Nf6 {[%emt 0:13:32]} 2. Nf3 {[%emt 0:00:17]} g6 {[%emt 0:00:26]} 3. Nc3 {[%emt 0:00:12]} d5 {[%emt 0:00:08]} 4. Bf4 {[%emt 0:00:25]} Bg7 {[%emt 0:00:31]} 5. e3 {[%emt 0:00:06]} O-O {[%emt 0:00:19]} 6. Be2 {[%emt 0:00:05]} c5 {[%emt 0:00:08]} 7. Ne5 {[%emt 0:00:07]} Nc6 {[%emt 0:01:07]} 8. Qd2 {[%emt 0:00:10]} Ne8 {[%emt 0:05:27]} 9. h4 {[%emt 0:05:02]} f6 {[%emt 0:03:46]} 10. Nf3 {[%emt 0:06:33]} cxd4 {[%emt 0:06:02]} 11. exd4 {[%emt 0:00:20]} Bg4 {[%emt 0:01:33]} 12. h5 {[%emt 0:07:09]} Bxh5 {[%emt 0:02:17]} 13. Bh6 {[%emt 0:00:30]} Rf7 {[%emt 0:03:54]} 14. O-O-O {[%emt 0:04:43]} Nd6 {[%emt 0:00:32]} 15. Bxg7 {[%emt 0:06:03]} Rxg7 {[%emt 0:00:14]} 16. Rdg1 {[%emt 0:08:49]} Bg4 {[%emt 0:07:46]} 17. Ng5 {[%emt 0:27:20]} Nc4 {[%emt 0:09:39]} 18. Ne6 {[%emt 0:14:22]} 0-1

[Event "Niedersachsen-ch Meister 2024"]
[Site "Verden Aller"]
[Date "2024.01.04"]
[Round "2.11"]
[White "Sauer, Tim"]
[Black "Aden, Tammo"]
[Result "1/2-1/2"]
[ECO "E02"]
[WhiteElo "2126"]
[BlackElo "2025"]
[Annotator "RC"]
[PlyCount "52"]
[EventDate "2024.01.01"]
[EventType "swiss"]
[EventCountry "GER"]
[SourceTitle "playchess.com"]
[Source "ChessBase"]
[SourceQuality "1"]
[TimeControl "40/5400+30:1800+30"]

1. d4 {[%emt 0:00:03]} d5 {[%emt 0:00:08]} 2. Nf3 {[%emt 0:00:10]} Nf6 {[%emt 0:00:10]} 3. c4 {[%emt 0:00:06]} e6 {[%emt 0:00:03]} 4. g3 {[%emt 0:00:05]} Be7 {[%emt 0:00:04]} 5. Bg2 {[%emt 0:00:04]} O-O {[%emt 0:00:22]} 6. O-O {[%emt 0:00:11]} dxc4 {[%emt 0:00:20]} 7. Qa4 {[%emt 0:00:14]} Bd7 {[%emt 0:03:50]} 8. Qxc4 {[%emt 0:00:49]} Bc6 {[%emt 0:03:14]} 9. Bg5 {[%emt 0:01:43]} Nbd7 {[%emt 0:02:52]} 10. Nbd2 {[%emt 0:08:27]} Rc8 {[%emt 0:09:26]} 11. Rfe1 {[%emt 0:25:01]} Ne4 {[%emt 0:07:50]} 12. Bxe7 {[%emt 0:02:22]} Qxe7 {[%emt 0:00:09]} 13. Qc2 {[%emt 0:07:39]} Nxd2 {[%emt 0:05:45]} 14. Qxd2 {[%emt 0:00:36]} Be4 {[%emt 0:07:08]} 15. b4 {[%emt 0:14:19]} Rfd8 {[%emt 0:04:29]} 16. Qb2 {[%emt 0:11:20]} Qf6 {[%emt 0:07:56]} 17. Rac1 {[%emt 0:02:35]} c5 {[%emt 0:11:45]} 18. bxc5 {[%emt 0:00:46]} Nxc5 {[%emt 0:00:27]} 19. Ne5 {[%emt 0:18:22]} Bxg2 {[%emt 0:00:19]} 20. Kxg2 {[%emt 0:01:39]} Ne4 {[%emt 0:03:50]} 21. f3 {[%emt 0:02:23]} Nd6 {[%emt 0:00:33]} 22. Qb4 {[%emt 0:01:10]} Qe7 {[%emt 0:07:05]} 23. e3 {[%emt 0:00:31]} Nf5 {[%emt 0:03:50]} 24. Qxe7 {[%emt 0:00:38]} Nxe7 {[%emt 0:00:04]} 25. Kf2 {[%emt 0:00:16]} Nd5 {[%emt 0:01:58]} 26. a3 {[%emt 0:01:25]} Kf8 {[%emt 0:03:43]} 1/2-1/2